bitfinex/quotes_SOLUSD_20230113
["timestamp","ask_amount","ask_price","bid_price","bid_amount"]
[1673584905950,10.0,17.141,17.123,20.0]
[1673584906165,10.0,17.143,17.123,20.0]
[1673584906590,108.5463,17.145,17.123,24.81252]
[1673584906809,108.5463,17.145,17.124,22.70769787]
[1673584907022,108.5463,17.145,17.125,20.0]
[1673584907438,10.0,17.144,17.125,42.70769787]
[1673584907645,10.0,17.144,17.116,50.85770294]
[1673584907853,10.0,17.142,17.117,112.7067]
[1673584908061,20.0,17.141,17.117,112.7067]
[1673584908489,27.96,17.14,17.117,112.7067]
[1673584908692,10.0,17.138,17.117,112.7067]
[1673584908906,37.0,17.137,17.117,112.7067]
[1673584909118,20.0,17.137,17.118,22.70769787]
[1673584909752,30.0,17.14,17.117,112.7067]
[1673584909967,10.0,17.139,17.117,112.7067]
[1673584910156,20.0,17.138,17.117,112.7067]
[1673584910371,10.0,17.137,17.117,112.7067]
[1673584910585,10.0,17.135,17.117,112.7067]
[1673584911209,10.0,17.133,17.117,112.7067]
[1673584911428,10.0,17.135,17.117,112.7067]
[1673584911858,10.0,17.133,17.117,112.7067]
[1673584912718,10.0,17.133,17.11,38.83]
[1673584913014,10.0,17.131,17.111,20.0]
[1673584913225,174.7,17.129,17.11,50.85770294]
[1673584913419,10.0,17.128,17.095,108.0547]
[1673584913638,37.0,17.127,17.1,38.83]
[1673584913856,11.92,17.126,17.1,38.83]
[1673584914062,17.0,17.125,17.1,38.83]
[1673584914279,10.96,17.124,17.101,22.70769787]
[1673584914482,10.0,17.122,17.101,22.70769787]
[1673584914896,17.0,17.121,17.101,22.70769787]
[1673584915120,10.0,17.122,17.101,22.70769787]
[1673584916394,10.0,17.122,17.102,0.96]
[1673584916698,10.0,17.122,17.103,22.70769787]
[1673584916910,10.0,17.122,17.104,0.96]
[1673584917118,10.0,17.122,17.104,20.96]
[1673584917943,17.0,17.121,17.104,20.96]
[1673584918153,17.0,17.121,17.104,0.96]
[1673584918797,10.96,17.12,17.104,0.96]
[1673584919012,17.0,17.119,17.104,0.96]
[1673584919215,17.0,17.119,17.105,0.96]
[1673584919641,17.0,17.119,17.101,20.0]
[1673584920173,10.0,17.118,17.101,20.0]
[1673584920382,17.0,17.117,17.101,20.0]
[1673584921216,17.0,17.117,17.1,38.83]
[1673584921440,20.96,17.116,17.09,38.53]
[1673584921744,27.96,17.115,17.091,22.70769787]
[1673584922069,10.0,17.114,17.091,22.70769787]
[1673584922253,10.0,17.112,17.091,22.70769787]
[1673584922465,17.0,17.111,17.091,22.70769787]
[1673584922698,0.96,17.11,17.09,38.53]
[1673584923098,0.96,17.11,17.09,61.23769787]
[1673584923306,0.96,17.11,17.09,22.70769787]
[1673584923630,0.96,17.11,17.086,118.2936]
[1673584923631,10.96,17.109,17.086,118.2936]
[1673584923851,37.96,17.108,17.086,118.2936]
[1673584924058,37.96,17.108,17.08,38.53]
[1673584924059,10.96,17.107,17.08,38.53]
[1673584924252,10.96,17.107,17.081,119.4506]
[1673584924253,37.96,17.106,17.081,119.4506]
[1673584924569,10.96,17.105,17.081,119.4506]
[1673584924785,10.0,17.103,17.081,119.4506]
[1673584925103,10.0,17.103,17.082,20.0]
[1673584925301,10.0,17.103,17.082,42.70769787]
[1673584925506,10.0,17.105,17.083,22.70769787]
[1673584925720,118.1844,17.109,17.09,38.7]
[1673584925924,118.1844,17.109,17.091,0.96]
[1673584926158,118.1844,17.109,17.091,53.66769787]
[1673584926343,118.1844,17.109,17.092,22.70769787]
[1673584926564,118.1844,17.109,17.093,20.96]
[1673584926979,110.1057,17.117,17.093,20.96]
[1673584927189,118.1855,17.118,17.095,10.0]
[1673584927417,118.1855,17.118,17.1,38.89]
[1673584927610,118.1855,17.118,17.101,20.96]
[1673584927820,109.2864,17.127,17.11,38.89]
[1673584928141,109.2864,17.127,17.111,20.96]
[1673584928463,109.2864,17.127,17.111,43.66769787]
[1673584928673,109.2864,17.127,17.112,22.70769787]
[1673584928885,10.0,17.135,17.113,20.96]
[1673584929097,10.0,17.138,17.113,20.96]
[1673584929422,10.0,17.135,17.114,22.70769787]
[1673584929611,10.0,17.135,17.115,20.0]
[1673584930040,10.0,17.135,17.116,23.66769787]
[1673584930268,10.0,17.138,17.117,20.0]
[1673584930571,10.0,17.144,17.12,38.38]
[1673584930786,10.0,17.144,17.121,0.96]
[1673584930992,10.0,17.144,17.121,43.66769787]
[1673584931188,10.0,17.144,17.122,23.66769787]
[1673584931397,10.0,17.144,17.123,20.96]
[1673584931630,10.0,17.144,17.123,43.66769787]
[1673584931842,114.5583,17.145,17.124,22.70769787]
[1673584932153,114.5583,17.145,17.125,20.96]
[1673584932342,114.5583,17.145,17.126,0.96]
[1673584932555,10.0,17.144,17.126,0.96]
[1673584932766,10.0,17.144,17.127,0.96]
[1673584932984,30.13940387,17.166,17.13,38.74]
[1673584933197,115.1454,17.172,17.14,38.76]
[1673584933416,10.0,17.177,17.141,10.0]
[1673584933606,10.0,17.177,17.142,24.80719]
[1673584933814,10.0,17.177,17.143,10.96]
[1673584934139,10.0,17.177,17.144,20.0]
[1673584934350,10.0,17.177,17.145,10.96]
[1673584934561,10.0,17.177,17.146,20.0]
[1673584934772,20.0,17.176,17.146,20.0]
[1673584934977,10.0,17.175,17.147,0.96]
[1673584935402,10.0,17.175,17.146,20.0]
[1673584935403,174.7,17.173,17.146,20.0]
[1673584935616,10.0,17.169,17.131,136.0211]
[1673584935827,20.0,17.168,17.132,14.80999]
[1673584936043,10.0,17.167,17.133,4.80971]
[1673584936359,10.0,17.165,17.133,4.80971]
[1673584936572,18.92,17.164,17.133,4.80971]
[1673584937298,17.96,17.164,17.134,10.96]
[1673584937518,17.96,17.164,17.14,38.76]
[1673584937702,17.96,17.164,17.141,20.96]
[1673584938036,20.0,17.168,17.142,10.0]
[1673584938233,115.1236,17.172,17.143,25.76691]
[1673584938448,115.1236,17.172,17.144,14.80662]
[1673584938659,10.0,17.171,17.145,25.76634]
[1673584938984,10.0,17.17,17.146,0.96]
[1673584939303,10.0,17.17,17.143,20.96]
[1673584939304,10.0,17.168,17.143,20.96]
[1673584939609,10.0,17.166,17.144,20.0]
[1673584939820,17.46,17.165,17.145,0.96]
[1673584940565,0.96,17.165,17.145,0.96]
[1673584940776,0.96,17.166,17.144,0.96]
[1673584940963,1.92,17.166,17.144,0.96]
[1673584941486,184.7,17.175,17.144,0.96]
[1673584941487,10.0,17.175,17.144,0.96]
[1673584941706,10.0,17.175,17.145,4.80634]
[1673584941927,30.46683801,17.174,17.146,0.96]
[1673584942238,30.46683801,17.174,17.146,20.96]
[1673584942647,10.0,17.171,17.146,20.96]
[1673584942859,18.92,17.17,17.146,20.96]
[1673584943063,18.92,17.17,17.146,0.96]
[1673584943277,18.92,17.17,17.147,20.96]
[1673584943488,17.96,17.17,17.148,0.96]
[1673584943698,10.96,17.169,17.148,20.96]
[1673584943921,17.96,17.168,17.148,20.96]
[1673584944245,17.96,17.168,17.149,20.0]
[1673584944441,10.96,17.167,17.142,115.5769]
[1673584944641,37.96,17.166,17.142,115.5769]
[1673584944851,10.0,17.165,17.142,115.5769]
[1673584945062,17.0,17.164,17.142,115.5769]
[1673584945585,17.0,17.165,17.142,115.5769]
[1673584945812,10.0,17.189,17.15,38.58]
[1673584946026,10.0,17.189,17.151,7.28011322]
[1673584946226,10.0,17.189,17.152,4.80438]
[1673584946552,10.0,17.189,17.153,13.43545322]
[1673584946746,184.7,17.192,17.153,185.85716161]
[1673584946960,10.0,17.189,17.16,38.5]
[1673584947290,10.0,17.189,17.153,118.0218]
[1673584947478,10.0,17.189,17.153,122.8259]
[1673584947904,10.0,17.187,17.153,122.8259]
[1673584948229,20.0,17.186,17.16,38.42]
[1673584948549,20.0,17.188,17.16,38.42]
[1673584948742,20.0,17.188,17.161,21.57505585]
[1673584948950,20.0,17.188,17.161,20.96]
[1673584949162,20.0,17.188,17.162,22.70769787]
[1673584949373,20.0,17.188,17.163,22.52425819]
[1673584949583,20.0,17.188,17.163,21.92]
[1673584949797,20.0,17.188,17.164,22.70769787]
[1673584950012,10.0,17.189,17.165,0.96]
[1673584950223,10.0,17.189,17.165,20.96]
[1673584950622,118.8885,17.19,17.165,0.96]
[1673584950839,118.8885,17.19,17.17,38.42]
[1673584951371,10.0,17.189,17.161,20.0]
[1673584951791,31.42683801,17.188,17.161,20.0]
[1673584951998,49.38683801,17.188,17.161,20.0]
[1673584952212,10.0,17.186,17.161,20.0]
[1673584952534,10.0,17.184,17.161,20.0]
[1673584952772,18.92,17.183,17.161,20.0]
[1673584952970,10.0,17.182,17.15,38.76]
[1673584953179,213.62,17.181,17.15,38.76]
[1673584953504,10.0,17.18,17.15,38.76]
[1673584953820,10.0,17.178,17.151,22.70769787]
[1673584954035,38.92,17.177,17.15,38.76]
[1673584954242,10.0,17.176,17.15,38.76]
[1673584954451,18.92,17.175,17.15,38.76]
[1673584954663,10.0,17.174,17.151,20.0]
[1673584954851,18.92,17.173,17.151,20.0]
[1673584956323,10.0,17.174,17.151,20.0]
[1673584957927,17.96,17.173,17.151,20.0]
[1673584958749,20.0,17.177,17.152,22.70769787]
[1673584958959,20.0,17.178,17.153,20.0]
[1673584959379,10.0,17.177,17.154,22.70769787]
[1673584959591,20.0,17.176,17.155,20.96]
[1673584960237,17.0,17.175,17.155,20.96]
[1673584960464,20.0,17.176,17.155,20.96]
[1673584961271,20.0,17.176,17.155,43.66769787]
[1673584962136,10.0,17.182,17.16,38.49]
[1673584962137,117.8975,17.181,17.16,38.49]
[1673584962337,10.0,17.18,17.161,21.92]
[1673584964036,10.0,17.18,17.161,20.0]
[1673584964255,20.0,17.179,17.16,38.49]
[1673584964568,11.92,17.178,17.16,38.49]
[1673584964760,10.0,17.176,17.16,38.49]
[1673584964972,17.96,17.175,17.16,38.49]
[1673584965181,17.0,17.175,17.16,38.49]
[1673584966127,10.0,17.176,17.16,38.49]
[1673584966337,10.0,17.176,17.161,0.96]
[1673584967513,17.0,17.175,17.161,0.96]
[1673584968034,17.0,17.175,17.15,38.76]
[1673584968035,10.0,17.174,17.157,20.0]
[1673584968240,11.92,17.174,17.151,20.0]
[1673584968441,17.0,17.173,17.151,20.0]
[1673584968646,10.0,17.177,17.151,20.0]
[1673584968975,10.0,17.189,17.153,10.0]
[1673584969293,40.46683801,17.188,17.16,38.49]
[1673584969483,10.0,17.18,17.161,0.96]
[1673584969694,10.0,17.18,17.162,0.96]
[1673584969915,10.0,17.18,17.163,0.96]
[1673584970123,118.8885,17.19,17.164,0.96]
[1673584970339,118.8885,17.19,17.17,38.58]
[1673584970548,10.0,17.189,17.17,38.58]
[1673584970751,10.0,17.189,17.171,20.96]
[1673584971380,10.0,17.189,17.171,0.96]
[1673584971712,10.0,17.187,17.166,111.4277]
[1673584971904,20.0,17.186,17.167,0.96]
[1673584972539,110.6311,17.19,17.17,38.72]
[1673584972862,110.6311,17.19,17.17,43.51935]
[1673584973057,10.0,17.189,17.17,43.51935]
[1673584973268,10.0,17.189,17.17,38.72]
[1673584973480,10.0,17.189,17.171,20.0]
[1673584974334,9.5,17.189,17.171,20.0]
[1673584975387,110.6311,17.19,17.171,20.0]
[1673584978335,10.0,17.194,17.171,20.0]
[1673584978548,10.0,17.195,17.172,4.79879]
[1673584979383,10.0,17.195,17.173,1.92]
[1673584979594,10.0,17.195,17.173,21.92]
[1673584979910,10.0,17.195,17.173,20.0]
[1673584980120,18.92,17.194,17.171,20.0]
[1673584980529,10.0,17.193,17.171,20.0]
[1673584981367,17.96,17.192,17.171,20.0]
[1673584981576,10.0,17.191,17.171,20.0]
[1673584981784,110.128,17.19,17.171,20.0]
[1673584982003,30.0,17.189,17.16,38.49]
[1673584982225,128.2874,17.188,17.16,38.49]
[1673584982430,10.0,17.187,17.161,14.80186]
[1673584982654,18.92,17.186,17.161,10.0]
[1673584982865,17.96,17.186,17.161,10.0]
[1673584983500,109.3674,17.188,17.161,57.23990839]
[1673584983681,109.3674,17.188,17.162,24.80158]
[1673584983888,109.3674,17.188,17.163,10.0]
[1673584984100,110.128,17.19,17.17,38.76]
[1673584984320,110.128,17.19,17.171,0.96]
[1673584984746,110.128,17.19,17.172,0.96]
[1673584985367,110.128,17.19,17.173,0.96]
[1673584987807,10.0,17.189,17.173,20.0]
[1673584988123,110.128,17.19,17.171,20.0]
[1673584989169,110.128,17.19,17.172,1.92]
[1673584989375,110.128,17.19,17.171,20.0]
[1673584989567,10.0,17.189,17.171,20.0]
[1673584990956,17.96,17.188,17.165,112.2515]
[1673584991152,174.7,17.187,17.165,112.2515]
[1673584991364,10.0,17.185,17.165,112.2515]
[1673584991574,18.92,17.184,17.165,112.2515]
[1673584991886,10.0,17.183,17.16,38.49]
[1673584992093,10.0,17.183,17.16,42.88]
[1673584992094,10.0,17.181,17.16,42.88]
[1673584992427,18.92,17.18,17.16,42.88]
[1673584992649,30.0,17.179,17.155,112.3967]
[1673584992831,10.0,17.177,17.155,112.3967]
[1673584993041,18.92,17.176,17.155,112.3967]
[1673584993568,0.67294639,17.175,17.155,112.3967]
[1673584993781,0.96,17.174,17.155,112.3967]
[1673584993997,10.0,17.173,17.155,112.3967]
[1673584994210,113.6072,17.172,17.155,112.3967]
[1673584994414,10.69931125,17.171,17.155,112.3967]
[1673584994636,10.0,17.171,17.155,112.3967]
[1673584994824,0.68812289,17.17,17.155,112.3967]
[1673584995459,10.0,17.171,17.155,112.3967]
[1673584996092,10.0,17.171,17.15,43.15]
[1673584996319,10.0,17.169,17.151,20.0]
[1673584997374,17.96,17.17,17.151,20.0]
[1673584997563,113.6072,17.172,17.152,10.0]
[1673584997781,113.6072,17.172,17.153,20.0]
[1673584998217,113.6072,17.172,17.16,43.15]
[1673584998427,113.6072,17.181,17.16,43.15]
[1673584998617,113.6072,17.181,17.161,20.0]
[1673584998955,10.0,17.18,17.161,20.0]
[1673584999467,30.46683801,17.179,17.16,43.15]
[1673584999684,10.0,17.177,17.153,47.23990839]
[1673585000926,113.6072,17.181,17.16,43.15]
[1673585001572,113.6072,17.181,17.154,4.80382]
[1673585001573,10.0,17.18,17.157,47.23990839]
[1673585001778,184.7,17.179,17.15,42.89]
[1673585001981,10.71704331,17.178,17.15,42.89]
[1673585002190,175.33463121,17.177,17.15,42.89]
[1673585002407,28.92,17.176,17.15,42.89]
[1673585003578,17.96,17.176,17.15,42.89]
[1673585003769,10.0,17.18,17.151,4.80466]
[1673585003980,20.0,17.179,17.16,42.91]
[1673585004189,10.0,17.178,17.16,42.91]
[1673585004712,40.46683801,17.178,17.16,42.91]
[1673585004914,10.0,17.176,17.151,4.80466]
[1673585005129,18.92,17.175,17.151,20.0]
[1673585005351,49.38683801,17.175,17.151,20.0]
[1673585005560,10.0,17.178,17.151,20.0]
[1673585005789,10.0,17.178,17.152,14.80438]
[1673585005984,10.0,17.178,17.153,20.0]
[1673585006408,10.0,17.178,17.154,0.96]
[1673585007143,40.46683801,17.178,17.155,0.96]
[1673585007348,40.46683801,17.178,17.156,0.96]
[1673585007559,40.46683801,17.178,17.153,20.0]
[1673585007560,10.0,17.177,17.153,20.0]
[1673585007778,18.92,17.176,17.151,20.0]
[1673585007990,10.0,17.175,17.151,20.0]
[1673585009159,17.96,17.174,17.151,20.0]
[1673585009351,0.96,17.173,17.151,20.0]
[1673585009550,10.96,17.173,17.151,20.0]
[1673585009762,10.0,17.171,17.151,20.0]
[1673585010304,10.0,17.171,17.152,0.96]
[1673585010629,0.67501302,17.17,17.151,20.0]
[1673585010840,10.0,17.171,17.151,20.0]
[1673585011983,10.0,17.169,17.15,43.15]
[1673585012303,174.7,17.167,17.142,113.0934]
[1673585012515,2.31203877,17.165,17.142,113.0934]
[1673585012715,2.31203877,17.163,17.142,113.0934]
[1673585013050,117.84123877,17.163,17.142,113.0934]
[1673585013350,2.31203877,17.16,17.142,113.0934]
[1673585014188,2.31203877,17.161,17.143,20.0]
[1673585014388,2.31203877,17.161,17.142,113.0934]
[1673585015255,19.31203877,17.161,17.142,113.0934]
[1673585015434,2.31203877,17.161,17.142,113.0934]
[1673585015645,2.31203877,17.161,17.143,20.0]
[1673585016391,10.0,17.16,17.144,0.96]
[1673585016607,2.31203877,17.159,17.144,0.96]
[1673585017230,2.31203877,17.16,17.144,0.96]
[1673585017442,12.31203877,17.16,17.144,0.96]
[1673585019009,2.31203877,17.16,17.144,0.96]
[1673585019348,2.31203877,17.161,17.144,0.96]
[1673585020477,2.31203877,17.159,17.143,20.0]
[1673585022082,2.31203877,17.159,17.129,119.7367]
[1673585022083,1.92,17.158,17.129,119.7367]
[1673585022267,3.27527865,17.157,17.129,119.7367]
[1673585022479,11.92,17.156,17.129,119.7367]
[1673585022694,3.27527865,17.155,17.13,46.35]
[1673585023023,11.92,17.154,17.13,46.35]
[1673585023225,46.35,17.15,17.13,46.35]
[1673585023417,10.0,17.148,17.129,119.7367]
[1673585023632,4.23527865,17.147,17.129,119.7367]
[1673585024269,3.27527865,17.147,17.129,119.7367]
[1673585024487,23.27527865,17.149,17.13,46.35]
[1673585024690,20.0,17.148,17.131,0.96]
[1673585024908,20.0,17.148,17.132,0.96]
[1673585024909,3.27527865,17.147,17.132,0.96]
[1673585025442,3.27527865,17.147,17.13,46.35]
[1673585025652,3.27527865,17.147,17.131,0.96]
[1673585025859,10.0,17.148,17.131,0.96]
[1673585026061,3.27527865,17.147,17.131,0.96]
[1673585028172,23.27527865,17.149,17.131,0.96]
[1673585028380,3.27527865,17.149,17.131,0.96]
[1673585028697,3.27527865,17.151,17.131,44.49873746]
[1673585028889,3.27527865,17.151,17.131,20.96]
[1673585029107,46.02,17.15,17.13,46.4]
[1673585029309,10.0,17.148,17.13,46.4]
[1673585029513,3.27527865,17.147,17.13,46.4]
[1673585029727,33.74211666,17.147,17.13,46.4]
[1673585029951,3.27527865,17.147,17.13,46.4]
[1673585030373,3.27527865,17.149,17.13,46.4]
[1673585030572,10.0,17.151,17.13,46.4]
[1673585030782,3.27527865,17.15,17.13,46.4]
[1673585030994,80.07211666,17.15,17.13,46.4]
[1673585031208,40.46683801,17.149,17.13,46.4]
[1673585031541,40.46683801,17.149,17.129,119.7367]
[1673585031542,3.27527865,17.146,17.129,119.7367]
[1673585031733,3.27527865,17.144,17.129,119.7367]
[1673585032158,13.27527865,17.144,17.129,119.7367]
[1673585032351,18.92,17.143,17.12,46.7]
[1673585032563,46.4,17.14,17.12,46.7]
[1673585032787,10.96,17.139,17.12,46.7]
[1673585033000,10.0,17.137,17.12,46.7]
[1673585033208,139.82717865,17.136,17.12,46.7]
[1673585033429,10.0,17.135,17.12,46.7]
[1673585033623,3.27527865,17.134,17.12,46.7]
[1673585035211,3.27527865,17.134,17.112,10.0]
[1673585035519,3.27527865,17.134,17.11,46.15]
[1673585035520,23.27527865,17.134,17.11,46.15]
[1673585035734,10.0,17.133,17.11,46.15]
[1673585035929,3.27527865,17.132,17.11,46.15]
[1673585036267,3.27527865,17.132,17.111,14.81589]
[1673585036573,3.27527865,17.134,17.12,46.4]
[1673585036779,3.27527865,17.134,17.112,4.81561]
[1673585038358,10.0,17.133,17.111,20.0]
[1673585038573,3.27527865,17.132,17.111,20.0]
[1673585038883,3.27527865,17.134,17.112,4.81561]
[1673585039090,3.27527865,17.134,17.113,10.0]
[1673585039310,3.27527865,17.135,17.114,4.81505]
[1673585039516,3.27527865,17.135,17.114,141.61495]
[1673585039732,3.27527865,17.135,17.12,46.02]
[1673585040036,46.4,17.14,17.12,46.02]
[1673585040037,13.27527865,17.14,17.12,46.02]
[1673585040358,3.27527865,17.138,17.121,0.96]
[1673585040671,116.5519,17.145,17.121,0.96]
[1673585040885,116.5519,17.145,17.122,4.8128]
[1673585041074,10.0,17.144,17.123,0.96]
[1673585041824,10.0,17.144,17.123,112.6407]
[1673585042251,10.0,17.144,17.124,20.0]
[1673585042454,10.0,17.144,17.125,0.96]
[1673585043082,18.92,17.143,17.125,0.96]
[1673585043289,10.0,17.142,17.125,0.96]
[1673585043604,20.0,17.141,17.12,46.02]
[1673585043927,11.63453058,17.139,17.116,113.706]
[1673585044140,10.0,17.137,17.116,113.706]
[1673585044352,156.98623058,17.136,17.116,113.706]
[1673585044664,156.98623058,17.136,17.11,46.4]
[1673585044852,1.63453058,17.134,17.11,46.4]
[1673585045060,1.70810568,17.132,17.11,46.4]
[1673585045294,10.0,17.131,17.11,46.4]
[1673585045487,1.70810568,17.13,17.11,46.4]
[1673585045697,21.70810568,17.13,17.11,46.4]
[1673585046134,1.70810568,17.128,17.11,46.4]
[1673585046338,1.70810568,17.128,17.106,113.706]
[1673585046571,1.94815472,17.126,17.11,45.9]
[1673585046757,31.94815472,17.126,17.11,45.9]
[1673585047292,21.94815472,17.126,17.11,45.9]
[1673585047906,21.94815472,17.126,17.111,23.53873746]
[1673585048122,21.94815472,17.126,17.11,45.9]
[1673585049289,31.94815472,17.126,17.11,45.9]
[1673585049790,10.0,17.125,17.11,45.9]
[1673585050631,0.75399119,17.124,17.11,45.9]
[1673585051918,0.75399119,17.124,17.106,113.706]
[1673585052104,0.75399119,17.124,17.107,20.0]
[1673585053792,1.0,17.125,17.11,46.4]
[1673585053996,11.0,17.125,17.11,46.4]
[1673585056116,1.0,17.125,17.11,46.4]
[1673585056739,1.0,17.125,17.107,20.0]
[1673585056949,1.0,17.125,17.107,43.53873746]
[1673585057164,1.0,17.125,17.107,83.537827]
[1673585057389,11.0,17.125,17.107,83.537827]
[1673585057580,10.0,17.125,17.107,83.537827]
[1673585057791,0.62112761,17.124,17.108,0.96]
[1673585058002,10.0,17.125,17.108,0.96]
[1673585059181,0.66669489,17.124,17.108,0.96]
[1673585059493,20.0,17.126,17.108,0.96]
[1673585059697,30.46683801,17.123,17.107,39.99908954]
[1673585059910,46.02,17.12,17.093,110.8299]
[1673585060116,0.84166631,17.118,17.093,110.8299]
[1673585060329,10.84166631,17.118,17.094,10.0]
[1673585060527,0.84166631,17.116,17.094,10.0]
[1673585061582,10.84166631,17.116,17.094,10.0]
[1673585061792,0.84166631,17.116,17.101,35.07138887]
[1673585062018,112.0918,17.118,17.101,58.61012633]
[1673585062219,112.0918,17.118,17.102,23.53873746]
[1673585062423,10.0,17.124,17.103,0.96]
[1673585062629,10.0,17.124,17.103,116.0156]
[1673585062841,10.0,17.124,17.104,20.0]
[1673585063054,10.0,17.124,17.105,0.96]
[1673585066974,114.7712,17.125,17.105,0.96]
[1673585067186,116.4317,17.127,17.105,0.96]
[1673585067376,20.0,17.126,17.105,0.96]
[1673585067796,20.0,17.126,17.105,10.96]
[1673585068006,20.0,17.126,17.106,23.53873746]
[1673585068216,20.0,17.126,17.107,20.96]
[1673585068636,20.0,17.126,17.107,44.49873746]
[1673585069064,10.0,17.125,17.107,44.49873746]
[1673585069483,10.0,17.125,17.107,20.96]
[1673585069698,10.0,17.125,17.107,0.96]
[1673585072966,10.0,17.125,17.104,20.0]
[1673585074537,10.0,17.125,17.105,20.0]
[1673585074538,10.0,17.123,17.105,20.0]
[1673585074728,10.0,17.123,17.106,0.96]
[1673585074933,10.0,17.123,17.105,0.96]
[1673585075908,20.96,17.122,17.103,115.0556]
[1673585076118,46.23,17.12,17.103,115.0556]
[1673585076428,10.0,17.118,17.103,115.0556]
[1673585076638,20.0,17.117,17.103,115.0556]
[1673585077046,10.0,17.116,17.103,115.0556]
[1673585077256,20.0,17.117,17.103,115.0556]
[1673585077699,30.0,17.117,17.103,115.0556]
[1673585078095,30.0,17.117,17.1,46.49]
[1673585078411,30.0,17.117,17.097,116.9336]
[1673585078412,10.0,17.116,17.097,116.9336]
[1673585078627,0.68963084,17.115,17.097,116.9336]
[1673585078836,10.0,17.116,17.097,116.9336]
[1673585079048,0.65760427,17.115,17.097,116.9336]
[1673585079260,10.0,17.116,17.097,116.9336]
[1673585081560,10.0,17.116,17.09,46.02]
[1673585081781,46.02,17.11,17.09,181.45003746]
[1673585081991,46.02,17.11,17.091,10.0]
[1673585082202,20.0,17.109,17.091,10.0]
[1673585082422,113.99674552,17.113,17.092,23.53873746]
[1673585082628,10.0,17.112,17.092,23.53873746]
[1673585083571,10.0,17.116,17.093,20.0]
[1673585083775,113.2667,17.124,17.101,10.0]
[1673585083982,10.0,17.123,17.1,46.15]
[1673585084303,10.0,17.117,17.102,88.57922511]
[1673585084730,10.0,17.117,17.103,88.57922511]
[1673585084928,10.0,17.123,17.103,88.57922511]
[1673585085133,20.0,17.117,17.103,88.57922511]
[1673585085889,20.0,17.117,17.104,88.57922511]
[1673585086205,20.0,17.117,17.105,65.04048765]
[1673585086394,10.0,17.123,17.105,65.04048765]
[1673585086395,56.23,17.13,17.105,65.04048765]
[1673585086605,128.7255,17.129,17.106,20.0]
[1673585086817,10.0,17.133,17.11,46.15]
[1673585087046,10.0,17.133,17.111,5.77589]
[1673585087237,120.6108,17.135,17.111,148.50687132]
[1673585087447,46.72,17.14,17.113,10.0]